fUST/lending_fUST_20250709
["ID","MTS","AMOUNT","RATE_DAILY","PERIOD"]
[370506291,1752048659326,-460.0,0.00020821,2]
[370506292,1752048659336,-649.64,0.00020821,2]
[370506293,1752048659345,-260.79943652,0.00020821,2]
[370506294,1752048659355,-460.0,0.00020821,2]
[370506295,1752048659364,-460.0,0.00020821,2]
[370506296,1752048659480,-460.0,0.00020821,2]
[370506297,1752048659490,-460.0,0.00020821,2]
[370506298,1752048659499,-1118.28268229,0.00020831,4]
[370506299,1752048659510,-1000.0,0.00020845,2]
[370506300,1752048659520,-168.056725,0.00020864,2]
[370506301,1752048659529,-1000.0,0.00020864,2]
[370506302,1752048659539,-334.46830892,0.00020864,2]
[370506303,1752048659548,-1000.0,0.00020864,2]
[370506304,1752048659558,-1000.0,0.00020864,2]
[370506305,1752048659567,-1500.0,0.00020868,2]
[370506306,1752048659577,-1574.16048143,0.00020868,2]
[370506307,1752048659586,-1500.0,0.00020868,2]
[370506308,1752048659596,-1500.0,0.00020868,2]
[370506309,1752048659605,-168.056725,0.00020957,2]
[370506310,1752048659614,-4000.0,0.00020986,4]
[370506311,1752048659623,-5717.406062,0.00021,2]
[370506312,1752048659633,-168.056725,0.00021051,2]
[370506313,1752048659642,-1118.28268229,0.00021072,4]
[370506314,1752048659652,-173.9,0.0002108,4]
[370506315,1752048659662,-460.0,0.00021095,2]
[370506316,1752048659671,-460.0,0.00021095,2]
[370506317,1752048659680,-460.0,0.00021095,2]
[370506318,1752048659690,-460.0,0.00021095,2]
[370506319,1752048659699,-1273.13406531,0.00021095,2]
[370506320,1752048659708,-234.46,0.00021095,2]
[370506321,1752048659718,-460.0,0.00021095,2]
[370506322,1752048659727,-472.08,0.00021095,2]
[370506323,1752048659736,-460.0,0.00021095,2]
[370506324,1752048659745,-312.02494386,0.00021095,2]
[370506325,1752048659755,-460.0,0.00021095,2]
[370506326,1752048659764,-460.0,0.00021095,2]
[370506327,1752048659774,-460.0,0.00021095,2]
[370506328,1752048659783,-460.0,0.00021095,2]
[370506329,1752048659792,-280.4211514,0.00021095,2]
[370506330,1752048659802,-460.0,0.00021095,2]
[370506331,1752048659812,-258.31,0.00021095,2]
[370506332,1752048659821,-460.0,0.00021095,2]
[370506333,1752048659831,-460.0,0.00021095,2]
[370506334,1752048659840,-512.6,0.00021095,2]
[370506335,1752048659850,-574.22,0.00021095,2]
[370506336,1752048659859,-460.0,0.00021095,2]
[370506337,1752048659869,-507.82,0.00021095,2]
[370506338,1752048659879,-556.7,0.00021095,2]
[370506339,1752048659888,-460.0,0.00021095,2]
[370506340,1752048659897,-460.0,0.00021095,2]
[370506341,1752048659906,-460.0,0.00021095,2]
[370506342,1752048659916,-460.0,0.00021095,2]
[370506343,1752048659926,-809.51,0.00021095,2]
[370506344,1752048659936,-460.0,0.00021095,2]
[370506345,1752048659946,-460.0,0.00021095,2]
[370506346,1752048659955,-3416.35,0.00021095,2]
[370506347,1752048659965,-460.0,0.00021095,2]
[370506348,1752048659975,-460.0,0.00021095,2]
[370506349,1752048659984,-521.54325457,0.00021095,2]
[370506350,1752048659994,-631.17,0.00021095,2]
[370506351,1752048660004,-566.78,0.00021095,2]
[370506352,1752048660013,-460.0,0.00021095,2]
[370506353,1752048660022,-922.45,0.00021095,2]
[370506354,1752048660031,-460.0,0.00021095,2]
[370506355,1752048660040,-460.0,0.00021095,2]
[370506356,1752048660051,-460.0,0.00021095,2]
[370506357,1752048660061,-460.0,0.00021095,2]
[370506358,1752048660070,-460.0,0.00021095,2]
[370506359,1752048660080,-460.0,0.00021095,2]
[370506360,1752048660089,-461.03,0.00021095,2]
[370506361,1752048660099,-460.0,0.00021095,2]
[370506362,1752048660108,-548.37,0.00021095,2]
[370506363,1752048660118,-1673.21,0.00021095,2]
[370506364,1752048660128,-856.19,0.00021095,2]
[370506365,1752048660138,-460.0,0.00021095,2]
[370506366,1752048660148,-575.07,0.00021095,2]
[370506367,1752048660158,-434.46,0.00021095,2]
[370506368,1752048660167,-1127.17,0.00021095,2]
[370506369,1752048660177,-1071.84,0.00021095,2]
[370506370,1752048660187,-460.0,0.00021095,2]
[370506371,1752048660196,-460.0,0.00021095,2]
[370506372,1752048660206,-618.77,0.00021095,2]
[370506373,1752048660215,-239.30576569,0.00021095,2]
[370506374,1752048660224,-460.0,0.00021095,2]
[370506375,1752048660235,-460.0,0.00021095,2]
[370506376,1752048660247,-460.0,0.00021095,2]
[370506377,1752048660256,-460.0,0.00021095,2]
[370506378,1752048660267,-1153.26,0.00021095,2]
[370506379,1752048660277,-265.31216949,0.00021095,2]
[370506380,1752048660286,-460.0,0.00021095,2]
[370506381,1752048660296,-2655.94,0.00021095,2]
[370506382,1752048660307,-327.71838445,0.00021095,2]
[370506383,1752048660319,-460.0,0.00021095,2]
[370506384,1752048660329,-460.0,0.00021095,2]
[370506385,1752048660339,-460.0,0.00021095,2]
[370506386,1752048660349,-460.0,0.00021095,2]
[370506387,1752048660359,-460.0,0.00021095,2]
[370506388,1752048660368,-1730.49,0.00021095,2]
[370506389,1752048660379,-460.0,0.00021095,2]
[370506390,1752048660388,-460.0,0.00021095,2]
[370506391,1752048660397,-460.0,0.00021095,2]
[370506392,1752048660411,-460.0,0.00021095,2]
[370506393,1752048660421,-896.8,0.00021095,2]
[370506394,1752048660431,-481.05,0.00021095,2]
[370506395,1752048660443,-3708.31,0.00021095,2]
[370506396,1752048660453,-748.7,0.00021095,2]
[370506397,1752048660463,-460.0,0.00021095,2]
[370506398,1752048660472,-460.0,0.00021095,2]
[370506399,1752048660484,-460.0,0.00021095,2]
[370506400,1752048660494,-1686.18,0.00021095,2]
[370506401,1752048660503,-460.0,0.00021095,2]
[370506402,1752048660512,-460.0,0.00021095,2]
[370506403,1752048660521,-460.0,0.00021095,2]
[370506404,1752048660531,-2583.43,0.00021095,2]
[370506405,1752048660540,-460.0,0.00021095,2]
[370506406,1752048660549,-460.0,0.00021095,2]
[370506407,1752048660559,-460.0,0.00021095,2]
[370506408,1752048660568,-1602.72,0.00021095,2]
[370506409,1752048660578,-460.0,0.00021095,2]
[370506410,1752048660587,-460.0,0.00021095,2]
[370506411,1752048660596,-790.24,0.00021095,2]
[370506412,1752048660606,-460.0,0.00021095,2]
[370506413,1752048660616,-2920.42,0.00021095,2]
[370506414,1752048660625,-557.98,0.00021095,2]
[370506415,1752048660634,-649.64,0.00021095,2]
[370506416,1752048660644,-460.0,0.00021095,2]
[370506417,1752048660653,-460.0,0.00021095,2]
[370506418,1752048660663,-460.0,0.00021095,2]
[370506419,1752048660672,-151.0,0.000211,3]
[370506420,1752048660682,-168.056725,0.00021144,2]
[370506421,1752048660691,-500.0,0.0002115,14]
[370506422,1752048660701,-500.0,0.0002115,15]
[370506423,1752048660710,-500.0,0.0002115,16]
[370506424,1752048660720,-168.056725,0.00021238,2]
[370506425,1752048660730,-1118.28268229,0.00021314,5]
[370506426,1752048660740,-168.056725,0.00021332,2]
[370506427,1752048660749,-500.0,0.00021364,2]
[370506428,1752048660759,-1240.24514543,0.00021364,2]
[370506429,1752048660768,-500.0,0.00021364,2]
[370506430,1752048660779,-466.93126224,0.00021369,2]
[370506431,1752048660789,-460.0,0.00021369,2]
[370506432,1752048660800,-460.0,0.00021369,2]
[370506433,1752048660809,-460.0,0.00021369,2]
[370506434,1752048660818,-460.0,0.00021369,2]
[370506435,1752048660827,-179.0690445,0.00021369,2]
[370506436,1752048660836,-460.0,0.00021369,2]
[370506437,1752048660846,-176.05,0.00021369,2]
[370506438,1752048660855,-472.08,0.00021369,2]
[370506439,1752048660864,-460.0,0.00021369,2]
[370506440,1752048660874,-460.0,0.00021369,2]
[370506441,1752048660883,-249.33,0.00021369,2]
[370506442,1752048660892,-460.0,0.00021369,2]
[370506443,1752048660901,-460.0,0.00021369,2]
[370506444,1752048660911,-460.0,0.00021369,2]
[370506445,1752048660921,-460.0,0.00021369,2]
[370506446,1752048660930,-460.0,0.00021369,2]
[370506447,1752048660939,-512.6,0.00021369,2]
[370506448,1752048660949,-574.22,0.00021369,2]
[370506449,1752048660959,-460.0,0.00021369,2]
[370506450,1752048660969,-556.7,0.00021369,2]
[370506451,1752048660979,-460.0,0.00021369,2]
[370506452,1752048660988,-460.0,0.00021369,2]
[370506453,1752048660998,-460.0,0.00021369,2]
[370506454,1752048661007,-809.51,0.00021369,2]
[370506455,1752048661016,-551.14962025,0.00021369,2]
[370506456,1752048661025,-3416.35,0.00021369,2]
[370506457,1752048661035,-460.0,0.00021369,2]
[370506458,1752048661044,-460.0,0.00021369,2]
[370506459,1752048661053,-460.0,0.00021369,2]
[370506460,1752048661062,-631.17,0.00021369,2]
[370506461,1752048661071,-566.78,0.00021369,2]
[370506462,1752048661080,-436.73,0.00021369,2]
[370506463,1752048661089,-922.45,0.00021369,2]
[370506464,1752048661098,-460.0,0.00021369,2]
[370506465,1752048661107,-460.0,0.00021369,2]
[370506466,1752048661116,-460.0,0.00021369,2]
[370506467,1752048661125,-347.08,0.00021369,2]
[370506468,1752048661134,-460.0,0.00021369,2]
[370506469,1752048661143,-460.0,0.00021369,2]
[370506470,1752048661153,-461.03,0.00021369,2]
[370506471,1752048661163,-460.0,0.00021369,2]
[370506472,1752048661172,-548.37,0.00021369,2]
[370506473,1752048661182,-1673.21,0.00021369,2]
[370506474,1752048661191,-856.19,0.00021369,2]
[370506475,1752048661200,-460.0,0.00021369,2]
[370506476,1752048661210,-575.07,0.00021369,2]
[370506477,1752048661219,-1127.17,0.00021369,2]
[370506478,1752048661229,-1071.84,0.00021369,2]
[370506479,1752048661238,-467.39,0.00021369,2]
[370506480,1752048661247,-460.0,0.00021369,2]
[370506481,1752048661256,-618.77,0.00021369,2]
[370506482,1752048661266,-460.0,0.00021369,2]
[370506483,1752048661274,-460.0,0.00021369,2]
[370506484,1752048661283,-460.0,0.00021369,2]
[370506485,1752048661293,-460.0,0.00021369,2]
[370506486,1752048661302,-1153.26,0.00021369,2]
[370506487,1752048661311,-460.0,0.00021369,2]
[370506488,1752048661320,-2655.94,0.00021369,2]
[370506489,1752048661329,-548.86,0.00021369,2]
[370506490,1752048661338,-460.0,0.00021369,2]
[370506491,1752048661347,-460.0,0.00021369,2]
[370506492,1752048661356,-460.0,0.00021369,2]
[370506493,1752048661366,-1730.49,0.00021369,2]
[370506494,1752048661375,-460.0,0.00021369,2]
[370506495,1752048661384,-460.0,0.00021369,2]
[370506496,1752048661393,-460.0,0.00021369,2]
[370506497,1752048661404,-321.3,0.00021369,2]
[370506498,1752048661415,-896.8,0.00021369,2]
[370506499,1752048661424,-481.05,0.00021369,2]
[370506500,1752048661433,-3708.31,0.00021369,2]
[370506501,1752048661443,-748.7,0.00021369,2]
[370506502,1752048661453,-460.0,0.00021369,2]
[370506503,1752048661462,-460.0,0.00021369,2]
[370506504,1752048661471,-1686.18,0.00021369,2]
[370506505,1752048661480,-460.0,0.00021369,2]
[370506506,1752048661491,-408.17,0.00021369,2]
[370506507,1752048661500,-460.0,0.00021369,2]
[370506508,1752048661510,-2583.43,0.00021369,2]
[370506509,1752048661519,-460.0,0.00021369,2]
[370506510,1752048661528,-460.0,0.00021369,2]
[370506511,1752048661537,-1602.72,0.00021369,2]
[370506512,1752048661547,-460.0,0.00021369,2]
[370506513,1752048661556,-473.54,0.00021369,2]
[370506514,1752048661565,-790.24,0.00021369,2]
[370506515,1752048661574,-460.0,0.00021369,2]
[370506516,1752048661583,-2920.42,0.00021369,2]
[370506517,1752048661593,-649.64,0.00021369,2]
[370506518,1752048661602,-460.0,0.00021369,2]
[370506519,1752048661611,-460.0,0.00021369,2]
[370506520,1752048661620,-460.0,0.00021369,2]
[370506521,1752048661630,-1500.0,0.00021393,2]
[370506522,1752048661640,-1500.0,0.00021412,2]
[370506523,1752048661649,-1500.0,0.00021412,2]
[370506524,1752048661658,-1500.0,0.00021412,2]
[370506525,1752048661667,-2000.0,0.00021416,2]
[370506526,1752048661677,-504.88404242,0.00021416,2]
[370506527,1752048661687,-2000.0,0.00021416,2]
[370506528,1752048661697,-428.6820723,0.00021452,2]
[370506529,1752048661706,-428.6820723,0.00021452,2]
[370506530,1752048661716,-352.1609938,0.00021452,2]
[370506531,1752048661725,-173.9,0.00021472,4]
[370506532,1752048661734,-500.0,0.00021479,2]
[370506533,1752048661848,-862.15445716,0.00021509,2]
[370506534,1752048661858,-1118.28268229,0.00021555,5]
[370506535,1752048661869,-472.57103843,0.00021602,2]
[370506536,1752048661878,-1888.39386957,0.00021602,2]
[370506537,1752048661888,-278.08290182,0.00021602,2]
[370506538,1752048661897,-1111.21927566,0.00021602,2]
[370506539,1752048661907,-460.0,0.00021643,2]
[370506540,1752048661918,-460.0,0.00021643,2]
[370506541,1752048661928,-600.78,0.00021643,2]
[370506542,1752048661937,-460.0,0.00021643,2]
[370506543,1752048661947,-472.08,0.00021643,2]
[370506544,1752048661957,-460.0,0.00021643,2]
[370506545,1752048661968,-460.0,0.00021643,2]
[370506546,1752048661978,-460.0,0.00021643,2]
[370506547,1752048661988,-460.0,0.00021643,2]
[370506548,1752048661998,-460.0,0.00021643,2]
[370506549,1752048662007,-471.13,0.00021643,2]
[370506550,1752048662016,-512.6,0.00021643,2]
[370506551,1752048662026,-574.22,0.00021643,2]
[370506552,1752048662035,-460.0,0.00021643,2]
[370506553,1752048662045,-556.7,0.00021643,2]
[370506554,1752048662054,-446.84466765,0.00021643,2]
[370506555,1752048662063,-460.0,0.00021643,2]
[370506556,1752048662072,-460.0,0.00021643,2]
[370506557,1752048662081,-809.51,0.00021643,2]
[370506558,1752048662090,-3416.35,0.00021643,2]
[370506559,1752048662099,-460.0,0.00021643,2]
[370506560,1752048662108,-460.0,0.00021643,2]
[370506561,1752048662117,-631.17,0.00021643,2]
[370506562,1752048662127,-566.78,0.00021643,2]
[370506563,1752048662136,-922.45,0.00021643,2]
[370506564,1752048662145,-224.73,0.00021643,2]
[370506565,1752048662154,-460.0,0.00021643,2]
[370506566,1752048662163,-460.0,0.00021643,2]
[370506567,1752048662173,-175.35,0.00021643,2]
[370506568,1752048662182,-461.03,0.00021643,2]
[370506569,1752048662191,-460.0,0.00021643,2]
[370506570,1752048662200,-548.37,0.00021643,2]
[370506571,1752048662210,-1673.21,0.00021643,2]
[370506572,1752048662220,-856.19,0.00021643,2]
[370506573,1752048662229,-470.02337387,0.00021643,2]
[370506574,1752048662238,-575.07,0.00021643,2]
[370506575,1752048662248,-1127.17,0.00021643,2]
[370506576,1752048662257,-1071.84,0.00021643,2]
[370506577,1752048662266,-460.0,0.00021643,2]
[370506578,1752048662276,-618.77,0.00021643,2]
[370506579,1752048662285,-606.62,0.00021643,2]
[370506580,1752048662294,-460.0,0.00021643,2]
[370506581,1752048662303,-460.0,0.00021643,2]
[370506582,1752048662313,-1153.26,0.00021643,2]
[370506583,1752048662322,-460.0,0.00021643,2]
[370506584,1752048662332,-2655.94,0.00021643,2]
[370506585,1752048662341,-460.0,0.00021643,2]
[370506586,1752048662350,-460.0,0.00021643,2]
[370506587,1752048662359,-450.01741995,0.00021643,2]
[370506588,1752048662368,-1730.49,0.00021643,2]
[370506589,1752048662378,-460.0,0.00021643,2]
[370506590,1752048662387,-460.0,0.00021643,2]
[370506591,1752048662396,-460.0,0.00021643,2]
[370506592,1752048662410,-896.8,0.00021643,2]
[370506593,1752048662419,-481.05,0.00021643,2]
[370506594,1752048662430,-3708.31,0.00021643,2]
[370506595,1752048662439,-748.7,0.00021643,2]
[370506596,1752048662450,-460.0,0.00021643,2]
[370506597,1752048662460,-460.0,0.00021643,2]
[370506598,1752048662470,-1686.18,0.00021643,2]
[370506599,1752048662481,-460.0,0.00021643,2]
[370506600,1752048662492,-2583.43,0.00021643,2]
[370506601,1752048662501,-460.0,0.00021643,2]
[370506602,1752048662511,-460.0,0.00021643,2]
[370506603,1752048662520,-1602.72,0.00021643,2]
[370506604,1752048662529,-460.0,0.00021643,2]
[370506605,1752048662540,-790.24,0.00021643,2]
[370506606,1752048662549,-460.0,0.00021643,2]
[370506607,1752048662558,-2920.42,0.00021643,2]
[370506608,1752048662568,-649.64,0.00021643,2]
[370506609,1752048662577,-460.0,0.00021643,2]
[370506610,1752048662586,-460.0,0.00021643,2]
[370506611,1752048662596,-460.0,0.00021643,2]
[370506612,1752048662607,-1118.28268229,0.00021797,6]
[370506613,1752048662616,-2749.32,0.000218,2]
[370506614,1752048662626,-587.0,0.00021802,2]
[370506615,1752048662636,-737.9247905,0.00021818,2]
[370506616,1752048662646,-173.9,0.00021864,5]
[370506617,1752048662655,-364.48151979,0.000219,2]
[370506618,1752048662664,-12500.0,0.00021917,2]
[370506619,1752048662675,-460.0,0.00021917,2]
[370506620,1752048662685,-460.0,0.00021917,2]
[370506621,1752048662695,-472.08,0.00021917,2]
[370506622,1752048662705,-460.0,0.00021917,2]
[370506623,1752048662714,-594.29,0.00021917,2]
[370506624,1752048662724,-460.0,0.00021917,2]
[370506625,1752048662734,-460.0,0.00021917,2]
[370506626,1752048662743,-460.0,0.00021917,2]
[370506627,1752048662753,-460.0,0.00021917,2]
[370506628,1752048662762,-512.6,0.00021917,2]
[370506629,1752048662772,-574.22,0.00021917,2]
[370506630,1752048662782,-460.0,0.00021917,2]
[370506631,1752048662791,-556.7,0.00021917,2]
[370506632,1752048662800,-460.0,0.00021917,2]
[370506633,1752048662810,-809.51,0.00021917,2]
[370506634,1752048662819,-3416.35,0.00021917,2]
[370506635,1752048662829,-460.0,0.00021917,2]
[370506636,1752048662839,-460.0,0.00021917,2]
[370506637,1752048662848,-631.17,0.00021917,2]
[370506638,1752048662858,-566.78,0.00021917,2]
[370506639,1752048662867,-922.45,0.00021917,2]
[370506640,1752048662876,-460.0,0.00021917,2]
[370506641,1752048662886,-460.0,0.00021917,2]
[370506642,1752048662895,-461.03,0.00021917,2]
[370506643,1752048662906,-460.0,0.00021917,2]
[370506644,1752048662923,-1673.21,0.00021917,2]
[370506645,1752048662939,-548.37,0.00021917,2]
[370506646,1752048662952,-856.19,0.00021917,2]
[370506647,1752048662966,-575.07,0.00021917,2]
[370506648,1752048662980,-1127.17,0.00021917,2]
[370506649,1752048662994,-1071.84,0.00021917,2]
[370506650,1752048663010,-460.0,0.00021917,2]
[370506651,1752048663026,-618.77,0.00021917,2]
[370506652,1752048663042,-460.0,0.00021917,2]
[370506653,1752048663057,-460.0,0.00021917,2]
[370506654,1752048663071,-1153.26,0.00021917,2]
[370506655,1752048663087,-460.0,0.00021917,2]
[370506656,1752048663102,-2655.94,0.00021917,2]
[370506657,1752048663115,-460.0,0.00021917,2]
[370506658,1752048663127,-460.0,0.00021917,2]
[370506659,1752048663140,-1730.49,0.00021917,2]
[370506660,1752048663154,-460.0,0.00021917,2]
[370506661,1752048663168,-460.0,0.00021917,2]
[370506662,1752048663182,-460.0,0.00021917,2]
[370506663,1752048663198,-896.8,0.00021917,2]
[370506664,1752048663214,-481.05,0.00021917,2]
[370506665,1752048663225,-3708.31,0.00021917,2]
[370506666,1752048663236,-748.7,0.00021917,2]
[370506667,1752048663250,-460.0,0.00021917,2]
[370506668,1752048663267,-460.0,0.00021917,2]
[370506669,1752048663279,-1686.18,0.00021917,2]
[370506670,1752048663292,-352.46,0.00021917,2]
[370506671,1752048663305,-460.0,0.00021917,2]
[370506672,1752048663318,-2583.43,0.00021917,2]
[370506673,1752048663329,-460.0,0.00021917,2]
[370506674,1752048663341,-1602.72,0.00021917,2]
[370506675,1752048663354,-460.0,0.00021917,2]
[370506676,1752048663367,-790.24,0.00021917,2]
[370506677,1752048663379,-460.0,0.00021917,2]
[370506678,1752048663393,-2920.42,0.00021917,2]
[370506679,1752048663409,-649.64,0.00021917,2]
[370506680,1752048663421,-460.0,0.00021917,2]
[370506681,1752048663433,-460.0,0.00021917,2]
[370506682,1752048663447,-153.0,0.00021918,2]
[370506683,1752048663459,-153.0,0.00021918,2]
[370506684,1752048663471,-153.0,0.00021918,2]
[370506685,1752048663484,-153.0,0.00021918,2]
[370506686,1752048663497,-153.0,0.00021918,2]
[370506687,1752048663509,-153.0,0.00021918,2]
[370506688,1752048663520,-153.0,0.00021918,2]
[370506689,1752048663532,-153.0,0.00021918,2]
[370506690,1752048663544,-153.0,0.00021918,2]
[370506691,1752048663556,-153.0,0.00021918,2]
[370506692,1752048663569,-153.0,0.00021918,2]
[370506693,1752048663580,-153.0,0.00021918,2]
[370506694,1752048663592,-153.0,0.00021918,2]
[370506695,1752048663604,-153.0,0.00021918,2]
[370506696,1752048663616,-153.0,0.00021918,2]
[370506697,1752048663628,-153.0,0.00021918,2]
[370506698,1752048663642,-153.0,0.00021918,2]
[370506699,1752048663654,-153.0,0.00021918,2]
[370506700,1752048663666,-153.0,0.00021918,2]
[370506701,1752048663678,-153.0,0.00021918,2]
[370506702,1752048663690,-153.0,0.00021918,2]
[370506703,1752048663703,-153.0,0.00021918,2]
[370506704,1752048663716,-153.0,0.00021918,2]
[370506705,1752048663729,-153.0,0.00021918,2]
[370506706,1752048663741,-153.0,0.00021918,2]
[370506707,1752048663753,-153.0,0.00021918,2]
[370506708,1752048663766,-153.0,0.00021918,2]
[370506709,1752048663778,-153.0,0.00021918,2]
[370506710,1752048663792,-153.0,0.00021918,2]
[370506711,1752048663806,-153.0,0.00021918,2]
[370506712,1752048663818,-153.0,0.00021918,2]
[370506713,1752048663831,-153.0,0.00021918,2]
[370506714,1752048663844,-153.0,0.00021918,2]
[370506715,1752048663856,-153.0,0.00021918,2]
[370506716,1752048663868,-153.0,0.00021918,2]
[370506717,1752048663881,-153.0,0.00021918,2]
[370506718,1752048663894,-153.0,0.00021918,2]
[370506719,1752048663906,-153.0,0.00021918,2]
[370506720,1752048663918,-153.0,0.00021918,2]
[370506721,1752048663929,-153.0,0.00021918,2]
[370506722,1752048663939,-153.0,0.00021918,2]
[370506723,1752048663949,-153.0,0.00021918,2]
[370506724,1752048663958,-153.0,0.00021918,2]
[370506725,1752048663968,-153.0,0.00021918,2]
[370506726,1752048663977,-153.0,0.00021918,2]
[370506727,1752048663986,-153.0,0.00021918,2]
[370506728,1752048663995,-153.0,0.00021918,2]
[370506729,1752048664005,-153.0,0.00021918,2]
[370506730,1752048664014,-153.0,0.00021918,2]
[370506731,1752048664023,-153.0,0.00021918,2]
[370506732,1752048664033,-153.0,0.00021918,2]
[370506733,1752048664042,-153.0,0.00021918,2]
[370506734,1752048664052,-153.0,0.00021918,2]
[370506735,1752048664061,-153.0,0.00021918,2]
[370506736,1752048664070,-153.0,0.00021918,2]
[370506737,1752048664079,-153.0,0.00021918,2]
[370506738,1752048664088,-153.0,0.00021918,2]
[370506739,1752048664098,-153.0,0.00021918,2]
[370506740,1752048664107,-153.0,0.00021918,2]
[370506741,1752048664116,-153.0,0.00021918,2]
[370506742,1752048664126,-153.0,0.00021918,2]
[370506743,1752048664135,-153.0,0.00021918,2]
[370506744,1752048664144,-153.0,0.00021918,2]
[370506745,1752048664154,-153.0,0.00021918,2]
[370506746,1752048664163,-153.0,0.00021918,2]
[370506747,1752048664172,-153.0,0.00021918,2]
[370506748,1752048664182,-153.0,0.00021918,2]
[370506749,1752048664191,-153.0,0.00021918,2]
[370506750,1752048664201,-153.0,0.00021918,2]
[370506751,1752048664211,-153.0,0.00021918,2]
[370506752,1752048664444,-153.0,0.00021918,2]
[370506753,1752048664461,-153.0,0.00021918,2]
[370506754,1752048664472,-153.0,0.00021918,2]
[370506755,1752048664483,-153.0,0.00021918,2]
[370506756,1752048664494,-153.0,0.00021918,2]
[370506757,1752048664504,-153.0,0.00021918,2]
[370506758,1752048664514,-153.0,0.00021918,2]
[370506759,1752048664524,-153.0,0.00021918,2]
[370506760,1752048664534,-153.0,0.00021918,2]
[370506761,1752048664544,-153.0,0.00021918,2]
[370506762,1752048664554,-153.0,0.00021918,2]
[370506763,1752048664564,-153.0,0.00021918,2]
[370506764,1752048664576,-153.0,0.00021918,2]
[370506765,1752048664587,-153.0,0.00021918,2]
[370506766,1752048664596,-153.0,0.00021918,2]
[370506767,1752048664606,-153.0,0.00021918,2]
[370506768,1752048664616,-153.0,0.00021918,2]
[370506769,1752048664627,-153.0,0.00021918,2]
[370506770,1752048664637,-153.0,0.00021918,2]
[370506771,1752048664646,-153.0,0.00021918,2]
[370506772,1752048664655,-153.0,0.00021918,2]
[370506773,1752048664664,-153.0,0.00021918,2]
[370506774,1752048664674,-153.0,0.00021918,2]
[370506775,1752048664683,-153.0,0.00021918,2]
[370506776,1752048664693,-153.0,0.00021918,2]
[370506777,1752048664702,-153.0,0.00021918,2]
[370506778,1752048664712,-153.0,0.00021918,2]
[370506779,1752048664721,-153.0,0.00021918,2]
[370506780,1752048664730,-153.0,0.00021918,2]
[370506781,1752048664739,-153.0,0.00021918,2]
[370506782,1752048664750,-153.0,0.00021918,2]
[370506783,1752048664759,-153.0,0.00021918,2]
[370506784,1752048664768,-153.0,0.00021918,2]
[370506785,1752048664778,-153.0,0.00021918,2]
[370506786,1752048664787,-153.0,0.00021918,2]
[370506787,1752048664797,-153.0,0.00021918,2]
[370506788,1752048664807,-153.0,0.00021918,2]
[370506789,1752048664817,-153.0,0.00021918,2]
[370506790,1752048664826,-153.0,0.00021918,2]